bitfinex-derivatives/quotes_ETHF0:USTF0_20250902
["timestamp","ask_amount","ask_price","bid_price","bid_amount"]
[1756796262402,1.64347672,4415.2,4415.1,3.3973]
[1756796263005,1.64347672,4415.2,4415.1,3.2078]
[1756796265204,1.83771555,4415.2,4415.1,3.3973]
[1756796265403,1.83771555,4415.2,4415.1,3.2078]
[1756796265908,1.83771555,4415.2,4414.9,0.231]
[1756796266105,0.6907,4415.0,4414.9,0.4205]
[1756796266306,0.88493883,4415.0,4414.9,0.4205]
[1756796266910,0.88493883,4415.0,4414.9,0.6154]
[1756796267412,0.88493883,4415.0,4414.9,0.9148]
[1756796269005,0.68463883,4415.0,4414.9,0.9148]
[1756796269208,0.48143883,4415.0,4414.9,0.9148]
[1756796269508,0.19423883,4415.0,4414.9,0.9148]
[1756796269703,0.19423883,4415.0,4414.9,0.6154]
[1756796270203,0.19423883,4415.5,4414.9,0.6154]
[1756796270412,0.68463883,4415.5,4415.4,0.6838]
[1756796271012,0.4904,4415.5,4415.4,0.6838]
[1756796271207,1.8603434,4415.5,4415.4,0.6154]
[1756796272010,1.86035416,4415.5,4415.4,0.3844]
[1756796272311,1.86035416,4415.5,4415.4,0.6838]
[1756796272512,1.45685416,4415.5,4415.4,0.6838]
[1756796272712,1.66005416,4415.5,4415.4,0.6838]
[1756796273207,0.48147744,4415.5,4415.4,0.6838]
[1756796273605,0.68467744,4415.5,4415.4,0.6838]
[1756796273914,0.88497744,4415.5,4415.4,0.3844]
[1756796274113,0.88497744,4415.5,4415.4,0.1895]
[1756796275512,0.4035,4415.3,4415.2,3.6283]
[1756796275714,1.86035416,4415.3,4415.2,3.6283]
[1756796277213,1.86035416,4415.3,4415.2,3.3973]
[1756796277616,1.86035416,4415.3,4415.2,3.2078]
[1756796277914,1.86035416,4415.3,4415.2,3.3973]
[1756796279314,1.86035416,4415.3,4415.2,3.8916]
[1756796279814,1.86035416,4415.3,4415.2,3.3973]
[1756796281004,0.6907,4415.3,4415.2,3.3973]
[1756796281209,1.85819537,4415.3,4415.2,3.5922]
[1756796283318,1.85819537,4415.3,4415.2,3.2078]
[1756796284016,1.85819537,4415.3,4414.9,0.231]
[1756796284220,1.46577672,4415.0,4414.9,0.6154]
[1756796284416,1.85819537,4415.0,4414.9,0.6154]
[1756796285006,1.85819537,4415.0,4414.9,0.1895]
[1756796285218,1.85819537,4415.0,4414.9,0.4205]
[1756796287612,0.68251865,4415.0,4414.9,0.915]
[1756796288816,0.19211865,4415.0,4414.9,0.915]
[1756796289417,0.47931865,4415.0,4414.9,0.915]
[1756796289616,0.2872,4414.9,4414.5,3.2078]
[1756796289814,0.6907,4414.9,4414.8,0.3844]
[1756796290020,0.88334165,4414.9,4414.8,0.684]
[1756796290822,0.88334165,4414.9,4414.8,0.3844]
[1756796291024,0.68304165,4414.9,4414.8,0.684]
[1756796291320,0.68305261,4414.9,4414.8,0.684]
[1756796291621,0.68304215,4414.9,4414.8,0.684]
[1756796292011,0.4904,4414.9,4414.8,0.684]
[1756796295819,0.68302998,4414.9,4414.8,0.684]
[1756796296825,0.47982998,4414.9,4414.8,0.684]
[1756796297326,0.19262998,4414.9,4414.8,0.684]
[1756796298229,0.19262998,4414.9,4414.8,41.484]
[1756796302224,0.19262998,4414.9,4414.8,41.031]
[1756796302225,0.48802998,4414.9,4414.8,41.031]
[1756796302531,0.69476729,4414.9,4414.8,0.9146]
[1756796303127,0.89246729,4414.9,4414.8,0.9146]
[1756796303530,0.89246729,4414.9,4414.8,0.6327]
[1756796304120,0.89246729,4414.9,4414.8,0.9146]
[1756796304325,0.19256729,4414.9,4414.8,1.88997672]
[1756796304729,0.19256729,4414.9,4414.8,0.9146]
[1756796304929,0.19256729,4414.9,4414.8,41.7146]
[1756796305932,0.19256153,4414.9,4414.8,41.7146]
[1756796306131,0.19256153,4414.9,4414.8,42.68997672]
[1756796307631,0.19256153,4414.9,4414.8,41.7146]
[1756796308530,0.19256153,4414.9,4414.8,42.68997672]
[1756796310633,0.2954,4415.9,4414.8,42.68997672]
[1756796310839,0.5022,4415.9,4415.8,3.8914]
[1756796311134,0.2954,4416.3,4415.8,3.8405]
[1756796311332,0.2068,4416.3,4416.2,0.4017]
[1756796311636,1.48227177,4416.3,4416.2,0.6327]
[1756796311931,0.6999,4416.9,4416.8,0.2023]
[1756796312130,1.48227177,4416.8,4416.2,3.2078]
[1756796312333,0.6999,4416.4,4416.3,40.8]
[1756796313327,0.6999,4416.4,4416.3,0.2023]
[1756796313537,1.48227177,4416.4,4416.3,0.2023]
[1756796314325,1.48227177,4416.4,4416.3,0.6836]
[1756796315228,0.2954,4416.7,4416.6,0.4017]
[1756796315428,0.2954,4416.7,4416.6,0.9146]
[1756796316231,0.5022,4416.7,4416.6,0.9146]
[1756796316535,0.6999,4416.7,4416.6,0.6327]
[1756796317136,1.48227177,4416.7,4416.6,0.6327]
[1756796317531,1.48227177,4416.7,4416.2,44.2897]
[1756796317733,0.6999,4416.7,4416.6,0.2023]
[1756796317926,1.48227177,4416.7,4416.6,0.6327]
[1756796320331,1.48227177,4416.7,4416.6,0.4017]
[1756796320640,0.6999,4416.2,4416.1,0.231]
[1756796320843,0.6999,4416.2,4416.1,0.4333]
[1756796322039,0.6999,4416.2,4416.1,0.231]
[1756796322643,0.7083,4415.8,4415.7,3.2078]
[1756796322943,0.92152146,4415.8,4415.7,3.6352]
[1756796324035,0.92152146,4415.8,4415.7,3.4042]
[1756796324236,0.92152146,4415.8,4415.7,3.6352]
[1756796324838,0.92152146,4415.8,4415.7,3.8337]
[1756796325442,0.92152146,4415.8,4415.7,3.6352]
[1756796326242,1.70389323,4415.8,4415.7,3.6352]
[1756796326643,0.92152146,4415.8,4415.7,3.6352]
[1756796326839,1.70389323,4415.8,4415.7,3.8337]
[1756796327034,1.70389323,4415.8,4415.7,4.1333]
[1756796327242,1.70400854,4415.8,4415.7,4.1333]
[1756796327648,1.70400854,4415.8,4415.7,3.8337]
[1756796327946,0.72963677,4415.8,4415.7,4.1333]
[1756796328134,0.92165077,4415.8,4415.7,3.8337]
[1756796328848,0.52175077,4415.8,4415.7,4.1333]
[1756796329050,0.92165077,4415.8,4415.7,3.8337]
[1756796329346,0.3999,4415.3,4415.2,3.2078]
[1756796329540,1.70402254,4415.3,4415.2,3.6352]
[1756796329944,1.70402254,4415.3,4415.2,44.4352]
[1756796330136,0.92165077,4415.3,4415.2,44.7348]
[1756796330343,0.52175077,4415.3,4415.2,44.7348]
[1756796332349,0.52175077,4415.3,4415.2,44.5038]
[1756796332655,0.52175077,4415.3,4415.2,44.7348]
[1756796337261,0.21335077,4415.3,4415.2,44.7348]
[1756796337448,0.3084,4415.7,4415.5,0.3949]
[1756796337652,0.21353652,4415.6,4415.5,0.3949]
[1756796337853,0.21353597,4415.6,4415.5,0.6259]
[1756796338554,0.21353597,4415.6,4415.5,0.9252]
[1756796339254,0.72983597,4415.6,4415.5,0.6942]
[1756796339452,0.92183597,4415.6,4415.5,0.3949]
[1756796339655,0.92183597,4415.6,4415.5,0.6259]
[1756796339855,0.92183597,4415.6,4415.5,0.4274]
[1756796340059,1.70420774,4415.6,4415.5,0.4274]
[1756796340460,1.70420774,4415.6,4415.5,0.6259]
[1756796341056,1.70420774,4415.6,4415.5,0.3949]
[1756796341461,1.70420774,4415.6,4415.5,0.6259]
[1756796342261,0.92183597,4415.6,4415.5,0.6259]
[1756796342460,0.92183597,4415.6,4415.5,0.9252]
[1756796342658,0.92183597,4415.6,4415.5,0.6942]
[1756796342866,0.92183597,4415.6,4415.5,0.9252]
[1756796343351,0.21353597,4415.6,4415.5,0.6942]
[1756796343664,0.21353597,4415.6,4415.5,1.70757177]
[1756796344053,0.72983597,4415.6,4415.5,0.6942]
[1756796344260,0.92183597,4415.6,4415.5,0.9252]
[1756796344461,0.72983597,4415.6,4415.5,0.9252]
[1756796347351,0.72983597,4415.6,4415.5,0.6259]
[1756796347352,0.92249028,4415.6,4415.5,0.6259]
[1756796347759,0.92249028,4415.6,4415.5,0.4274]
[1756796349368,0.92249028,4415.6,4415.5,0.6259]
[1756796349755,0.21419028,4415.6,4415.5,1.15167]
[1756796350766,0.21419028,4415.6,4415.5,0.9252]
[1756796350966,0.21437521,4415.7,4415.5,0.6259]
[1756796351168,0.73067521,4415.6,4415.5,0.3949]
[1756796351357,0.92267521,4415.6,4415.5,0.3949]
[1756796351563,0.92267521,4415.6,4415.5,0.6259]
[1756796351763,0.92267521,4415.6,4415.5,0.9254]
[1756796352164,0.6646,4415.4,4415.3,0.1177]
[1756796352363,1.66134698,4415.4,4415.3,0.3487]
[1756796352573,1.66134698,4415.4,4415.3,0.231]
[1756796352873,1.66134698,4415.4,4415.3,0.4372]
[1756796353162,0.87897521,4415.4,4415.3,0.4372]
[1756796353362,0.87897521,4415.4,4415.3,0.645]
[1756796353563,0.87897521,4415.4,4415.3,0.9445]
[1756796354270,0.68667521,4415.4,4415.3,0.9445]
[1756796354470,0.49837521,4415.4,4415.3,0.9445]
[1756796356178,0.284,4415.3,4415.2,44.0078]
[1756796356371,0.49837521,4415.3,4415.2,44.5383]
[1756796356570,0.49837521,4415.3,4415.2,44.0078]
[1756796356876,0.49837521,4415.3,4415.2,44.2388]
[1756796358172,0.4984413,4415.3,4415.2,44.2388]
[1756796358878,0.4984413,4415.3,4415.2,44.0078]
[1756796359072,0.4984413,4415.3,4415.2,44.2388]
[1756796359271,0.49847941,4415.3,4415.2,44.2388]
[1756796359874,0.49847941,4415.3,4415.2,44.0078]
[1756796360169,0.49847941,4415.3,4415.2,44.2388]
[1756796361278,0.87907941,4415.3,4415.2,3.4388]
[1756796361572,0.87907941,4415.3,4415.2,3.2078]
[1756796362277,0.87907941,4415.3,4414.5,0.2995]
[1756796362278,0.6646,4414.6,4414.5,3.4388]
[1756796362471,1.66145118,4414.6,4414.5,3.4388]
[1756796362666,0.87907941,4414.6,4414.5,44.2388]
[1756796363072,0.87907941,4414.6,4414.5,44.0078]
[1756796363272,0.87907941,4414.6,4414.5,3.2078]
[1756796367376,0.87907941,4414.6,4414.5,3.414]
[1756796368781,0.90015548,4414.6,4414.5,3.414]
[1756796371380,0.90015548,4414.6,4414.5,3.6218]
[1756796372287,0.90735674,4414.6,4414.5,3.6218]
[1756796372786,0.90735674,4414.6,4414.5,3.9213]
[1756796375891,1.8830225,4414.6,4414.5,3.645]
[1756796377688,1.8830225,4414.6,4413.5,1.03466576]
[1756796377689,0.1883,4413.2,4413.0,2.03687887]
[1756796377888,1.88306757,4413.1,4413.0,0.7135]
[1756796378290,0.24280181,4413.1,4413.0,0.7135]
[1756796378495,0.24280181,4413.1,4413.0,0.9455]
[1756796379392,0.23847976,4413.1,4413.0,0.9455]
[1756796380987,0.23847976,4413.1,4413.0,41.7455]
[1756796381791,1.21414552,4413.1,4413.0,41.7455]
[1756796381989,0.23847976,4413.1,4413.0,46.80106576]
[1756796382591,0.23847976,4413.1,4413.0,45.8254]
[1756796382795,0.23847976,4413.1,4413.0,45.7455]
[1756796385489,0.23847976,4413.1,4413.0,41.5135]
[1756796385694,0.23847976,4413.1,4413.0,41.7455]
[1756796386290,0.53487976,4413.1,4413.0,41.7455]
[1756796386892,0.23847976,4413.1,4413.0,41.7455]
[1756796389297,0.53487976,4413.1,4413.0,41.7455]
[1756796389997,0.53502187,4413.1,4413.0,41.7455]
[1756796390199,0.23862187,4413.1,4413.0,41.7455]
[1756796390901,0.23866782,4413.1,4413.0,41.7455]
[1756796392702,0.23866782,4413.1,4413.0,42.72116576]
[1756796393294,0.23866782,4413.1,4413.0,42.80106576]
[1756796393706,0.23866782,4413.1,4413.0,41.8254]
[1756796394003,0.23866782,4413.1,4413.0,41.7455]
[1756796398603,0.23866782,4413.1,4413.0,41.5135]
[1756796399001,0.23866782,4413.1,4413.0,41.7445]
[1756796400506,3.2078,4414.7,4414.1,0.5809]
[1756796400808,0.53098917,4414.6,4414.5,0.5809]
[1756796401008,0.73358917,4414.6,4414.5,0.6259]
[1756796401205,0.73358917,4414.6,4414.5,41.1949]
[1756796401413,0.73358917,4414.6,4414.5,40.8]
[1756796401611,4.73358917,4414.6,4414.5,40.8]
[1756796401813,0.6994,4413.7,4413.6,0.3949]
[1756796402015,0.2964,4413.6,4413.2,2.03687887]
[1756796402220,1.90965493,4413.5,4413.4,0.2056]
[1756796402418,0.93398917,4413.5,4413.4,3.8337]
[1756796402713,0.73358917,4413.5,4413.4,3.7891]
[1756796403018,0.73358917,4413.5,4413.4,4.0201]
[1756796403221,0.73358917,4413.5,4413.4,3.8337]
[1756796403414,0.93398917,4413.5,4413.4,3.8337]
[1756796403716,0.6994,4412.8,4412.7,3.6027]
[1756796403920,0.93398917,4412.8,4412.7,3.8337]
[1756796404111,0.93398917,4412.8,4412.7,44.6337]
[1756796404418,0.73358917,4412.8,4412.7,44.6337]
[1756796405014,0.53098917,4412.8,4412.7,44.8201]
[1756796405215,0.23458917,4412.8,4412.7,44.8201]
[1756796405407,0.23458917,4412.8,4412.7,48.8201]
[1756796405815,0.2964,4413.6,4412.7,48.6337]
[1756796406115,0.2147806,4413.5,4413.4,0.5813]
[1756796406317,0.2147806,4413.5,4413.4,0.8123]
[1756796407120,0.0283806,4413.5,4413.4,0.8123]
[1756796407318,4.18346576,4415.1,4413.4,4.6259]
[1756796407514,0.2026,4414.8,4414.5,3.2078]
[1756796407714,0.499,4414.7,4414.6,0.232]
[1756796408616,0.6994,4414.7,4414.5,3.2078]
[1756796408813,0.1155,4414.5,4414.0,3.2078]
[1756796409018,1.67506576,4414.1,4414.0,3.2078]
[1756796409222,0.4119,4414.0,4413.9,40.8]
[1756796409823,0.8149,4414.0,4413.9,0.232]
[1756796410421,0.2964,4413.9,4413.5,3.2078]
[1756796410616,0.2026,4413.3,4413.2,2.03687887]
[1756796410818,0.499,4413.3,4413.2,41.032]
[1756796411024,0.1155,4414.0,4413.2,41.032]
[1756796411025,0.2964,4413.9,4413.2,41.032]
[1756796411320,0.6905,4413.9,4413.8,0.002]
[1756796411522,0.6905,4413.9,4413.8,0.232]
[1756796412919,0.5015,4413.9,4413.8,0.234]
[1756796413317,0.2942,4413.9,4413.8,0.234]
[1756796413918,3.3285,4415.0,4413.8,0.234]
[1756796414117,0.2942,4414.4,4413.8,0.234]
[1756796414333,0.2073,4413.9,4413.8,0.234]
[1756796414625,0.5015,4413.9,4413.8,0.234]
[1756796414925,3.3285,4415.0,4413.8,0.234]
[1756796415121,0.2942,4414.4,4413.8,0.234]
[1756796415324,0.2942,4414.4,4414.3,0.002]
[1756796415522,0.6952,4414.4,4414.3,0.234]
[1756796416317,0.2942,4414.4,4414.3,0.234]
[1756796416518,0.2942,4414.4,4414.3,41.034]
[1756796416724,0.2942,4414.4,4414.3,40.8]
[1756796417021,0.2942,4414.4,4414.3,41.032]
[1756796417221,0.2942,4414.4,4414.3,40.8]
[1756796417422,0.2942,4414.4,4414.3,41.032]
[1756796419126,0.48341159,4414.4,4414.3,41.032]
[1756796421030,0.50478319,4414.4,4414.3,41.032]
[1756796426126,0.90578319,4414.4,4414.3,0.232]
[1756796426327,0.61158319,4414.4,4414.3,0.232]
[1756796426522,0.61158319,4414.4,4414.3,0.233]
[1756796426729,0.61158319,4414.4,4413.5,40.8]
[1756796426935,0.2942,4414.2,4413.6,0.232]
[1756796427132,0.21058319,4414.3,4413.6,0.232]
[1756796427133,0.8145,4414.0,4413.9,0.001]
[1756796427435,1.02508319,4414.0,4413.9,0.233]
[1756796428623,1.02508319,4414.0,4413.9,0.001]
[1756796428927,1.02508319,4414.0,4413.9,0.233]
[1756796429533,1.02508319,4414.0,4413.9,0.234]
[1756796429921,1.02508319,4414.0,4413.9,0.002]
[1756796430123,1.02508319,4414.0,4413.9,0.234]
[1756796430523,1.02508319,4414.0,4413.9,0.233]
[1756796431336,1.02508319,4414.0,4413.9,0.001]
[1756796431532,0.8145,4414.0,4413.9,0.233]
[1756796431734,0.2942,4413.9,4413.6,3.3402]
[1756796431936,0.6952,4413.7,4413.6,3.3402]
[1756796432136,0.89505051,4413.7,4413.6,3.5722]
[1756796432332,0.89505051,4413.7,4413.6,3.5732]
[1756796433239,0.89505051,4413.7,4413.6,3.5742]
[1756796433538,0.90921353,4413.7,4413.6,3.5742]
[1756796434034,0.90921353,4413.7,4413.6,0.1324]
[1756796434035,1.69236844,4413.7,4413.6,0.1324]
[1756796434234,1.69236844,4413.7,4413.6,0.3644]
[1756796434438,0.90921353,4413.7,4413.6,0.232]
[1756796434643,1.69236844,4413.7,4413.6,0.232]
[1756796435135,0.90921353,4413.7,4413.6,0.233]
[1756796435340,0.50821353,4413.7,4413.6,1.01715491]
[1756796435742,0.50821353,4413.7,4413.6,0.234]
[1756796435935,0.71551353,4413.7,4413.6,0.234]
[1756796440638,0.90921353,4413.7,4413.6,0.234]
[1756796440839,0.6952,4413.6,4413.5,3.2078]
[1756796441142,0.90921353,4413.6,4413.5,3.4408]
[1756796441840,0.3827,4413.4,4413.3,0.1284]
[1756796442035,1.67176844,4413.4,4413.3,0.1284]
[1756796442231,1.64960601,4413.4,4413.3,0.232]
[1756796442438,0.8664511,4413.4,4413.3,0.232]
[1756796442744,1.64959624,4413.4,4413.3,0.232]
[1756796443439,1.64959624,4413.4,4412.9,44.0078]
[1756796443641,0.4112,4413.0,4412.9,44.0078]
[1756796443841,0.4112,4413.0,4412.9,44.2398]
[1756796444947,0.2919,4413.0,4412.9,44.2398]
[1756796445540,4.22295491,4414.4,4412.9,49.2495649]
[1756796445841,4.22295491,4414.4,4413.9,0.78315491]
[1756796445842,4.17955491,4414.4,4413.9,0.78315491]
[1756796446046,0.38035198,4414.3,4414.0,0.232]
[1756796446247,0.2919,4414.2,4414.1,40.8]
[1756796446945,0.2919,4414.2,4414.1,41.032]
[1756796447746,0.6746,4414.2,4414.1,0.232]
[1756796448348,0.6746,4414.2,4414.1,41.032]
[1756796448747,0.6746,4414.2,4414.1,0.232]
[1756796449744,0.4805,4414.2,4414.1,0.232]
[1756796449948,0.2919,4414.2,4414.1,0.232]
[1756796450149,0.4805,4414.2,4414.1,0.232]
[1756796451347,0.6746,4414.2,4414.1,0.232]
[1756796454146,0.2919,4414.2,4414.1,1.01515491]
[1756796455155,0.4805,4414.2,4414.1,1.01515491]
[1756796455453,0.2919,4414.1,4413.8,41.58315491]
[1756796455654,0.502,4414.0,4413.9,0.231]
[1756796455854,0.2919,4414.0,4413.9,0.231]
[1756796458258,0.4805,4414.0,4413.9,0.231]
[1756796458757,0.2919,4414.0,4413.9,0.231]
[1756796459262,0.4805,4414.0,4413.9,0.231]
[1756796459556,0.2919,4413.9,4413.8,41.58315491]
[1756796459746,0.2919,4413.9,4413.8,41.81415491]
[1756796460746,7.2078,4413.9,4413.2,2.03687887]
[1756796460950,1.45775491,4413.3,4412.8,2.03687887]
[1756796461155,0.3827,4412.8,4412.7,3.7348]
[1756796461356,0.6746,4412.8,4412.7,44.5348]
[1756796461559,1.45775491,4412.8,4412.7,44.4028]
[1756796461755,1.16585491,4412.8,4412.7,44.7024]
[1756796462056,0.78315491,4413.1,4412.8,0.2996]
[1756796462262,1.07505491,4413.4,4413.0,0.6946]
[1756796462554,0.1886,4413.4,4413.2,3.2078]
[1756796462756,1.45775491,4413.4,4413.3,0.4247]
[1756796463061,1.64497568,4413.4,4413.0,0.2996]
[1756796463255,0.6746,4413.4,4413.3,0.232]
[1756796463454,0.86182037,4413.4,4413.3,0.4247]
[1756796463748,0.86182037,4413.4,4413.3,0.9266]
[1756796464355,1.64497528,4413.4,4413.3,0.9266]
[1756796464657,0.18722037,4413.4,4413.3,0.9266]
[1756796464854,0.5937,4413.8,4413.7,0.395]
[1756796465160,0.78087895,4413.8,4413.7,4.1344]
[1756796465357,0.97497895,4413.8,4413.7,4.1344]
[1756796465961,0.97500659,4413.8,4413.7,4.1344]
[1756796466264,0.68310659,4413.8,4413.7,4.1344]
[1756796466658,0.30040659,4413.8,4413.7,4.1344]
[1756796467157,0.1132,4413.8,4413.7,4.1344]
[1756796467358,0.2919,4414.8,4413.7,49.16096]
[1756796467557,1.45775491,4415.0,4414.9,0.6946]
[1756796467860,0.2919,4414.9,4414.7,3.2078]
[1756796468162,0.86172562,4414.8,4414.2,0.2996]
[1756796468356,1.45775491,4414.3,4414.2,0.6946]
[1756796468851,0.2919,4414.2,4413.9,0.2996]
[1756796469058,1.45775491,4414.0,4413.9,0.4923]
[1756796469361,1.64493909,4414.0,4413.9,0.7243]
[1756796469664,1.64493909,4414.0,4413.9,41.2247]
[1756796471358,1.64493909,4414.0,4413.9,41.5181]
[1756796471551,0.86178418,4414.0,4413.9,41.5181]
[1756796471756,0.18718418,4414.0,4413.9,44.7259]
[1756796471957,0.2972,4414.7,4414.0,0.2934]
[1756796472159,0.90776823,4414.6,4414.5,0.1901]
[1756796472359,0.90776823,4414.6,4414.5,0.4221]
[1756796472558,0.90776823,4414.6,4414.5,0.9135]
[1756796472964,4.83708823,4414.6,4413.9,3.2078]
[1756796473263,0.4019,4414.1,4414.0,0.4221]
[1756796473464,0.59978772,4414.1,4414.0,41.2221]
[1756796473666,0.59978772,4414.1,4414.0,41.5155]
[1756796473865,0.89698772,4414.1,4414.0,41.2221]
[1756796474066,0.89698772,4414.1,4414.0,0.4221]
[1756796474770,0.19788772,4414.1,4414.0,0.9135]
[1756796475064,0.6991,4414.9,4414.8,0.1901]
[1756796475266,0.89724802,4414.9,4414.8,0.6815]
[1756796475563,0.89724802,4414.9,4414.7,41.032]
[1756796475564,0.2972,4414.8,4414.7,41.032]
[1756796475766,3.27852176,4414.8,4414.7,41.032]
[1756796475966,3.27852176,4414.8,4414.3,0.2934]
[1756796475967,3.68042176,4414.8,4414.6,0.232]
[1756796476168,0.60004802,4414.7,4414.0,0.2934]
[1756796476372,0.6991,4414.1,4414.0,0.4835]
[1756796476561,0.89724802,4414.1,4414.0,0.7155]
[1756796478472,0.89724802,4414.1,4414.0,0.4221]
[1756796478665,0.89724802,4414.1,4413.9,3.2078]
[1756796478866,0.49534802,4414.0,4413.9,44.0078]
[1756796479066,0.49534802,4414.0,4413.9,44.2398]
[1756796479268,0.49534802,4414.0,4413.9,41.032]
[1756796479468,0.49534802,4414.0,4413.9,41.3254]
[1756796479972,0.49534802,4414.0,4413.9,40.8]
[1756796480166,0.4019,4413.3,4413.2,5.43477887]
[1756796480367,0.89724802,4413.3,4413.2,3.9233]
[1756796480573,0.89724802,4413.3,4413.2,3.6913]
[1756796480761,0.89724802,4413.3,4413.2,44.7233]
[1756796483970,0.59971151,4413.3,4413.2,44.7233]
[1756796484175,0.19781151,4413.3,4413.2,44.7233]
[1756796484675,0.49501151,4413.3,4413.2,44.7233]
[1756796486069,0.49501151,4413.3,4413.2,44.4913]
[1756796486275,0.89691151,4413.3,4413.1,0.3669]
[1756796486468,3.68008525,4413.2,4413.1,0.3669]
[1756796486870,3.68008525,4413.2,4413.1,0.232]
[1756796487071,3.68008525,4413.2,4413.1,0.4221]
[1756796487271,3.68008525,4413.2,4413.1,0.232]
[1756796488973,3.38288525,4413.2,4412.8,0.232]
[1756796489175,0.19781151,4413.1,4413.0,0.1901]
[1756796489372,0.89691151,4413.1,4413.0,0.7155]
[1756796490675,0.19781151,4413.1,4413.0,0.9135]
[1756796490870,5.344,4413.7,4413.1,0.2934]
[1756796491073,5.344,4413.7,4413.6,0.6815]
[1756796491276,6.23394789,4413.7,4413.6,0.6815]
[1756796491477,7.01728429,4413.7,4413.6,0.6815]
[1756796492678,0.2972,4413.6,4413.0,3.5012]
[1756796492872,0.2028,4413.1,4413.0,3.8893]
[1756796493071,0.19084789,4413.1,4413.0,4.2384]
[1756796493275,0.2122938,4413.2,4413.1,0.3881]
[1756796493573,0.4150938,4413.2,4413.1,0.6815]
[1756796493976,0.9113938,4413.2,4413.1,0.6815]
[1756796494175,0.9113938,4413.2,4413.1,0.9135]
[1756796494374,0.91139919,4413.2,4413.1,0.9135]
[1756796494879,0.90960368,4413.2,4413.1,0.9135]
[1756796495282,0.90960591,4413.2,4413.1,0.9135]
[1756796496285,0.90960591,4413.2,4413.1,0.6815]
[1756796496490,0.90960591,4413.2,4413.1,0.9125]
[1756796496789,0.21050591,4413.2,4413.1,0.9125]
[1756796496985,0.2972,4413.7,4413.2,0.2934]
[1756796497192,0.2972,4413.7,4413.1,0.231]
[1756796497193,0.6991,4413.7,4413.6,0.6815]
[1756796497490,0.90959447,4413.7,4413.6,0.6815]
[1756796497889,0.90959447,4413.7,4413.6,0.1901]
[1756796498086,1.8858472,4413.7,4413.6,0.1901]
[1756796498890,0.4019,4413.3,4413.2,0.232]
[1756796499090,0.90959447,4413.3,4413.2,0.4221]
[1756796499391,0.90959447,4413.3,4413.2,0.7155]
[1756796500390,0.90959447,4413.3,4413.2,0.9135]
[1756796500793,0.90965623,4413.3,4413.2,0.9135]
[1756796501188,0.90965623,4413.3,4413.2,0.3881]
[1756796501387,0.6924,4412.9,4412.8,0.5696]
[1756796501583,1.87920896,4412.9,4412.8,0.1358]
[1756796501783,1.87920896,4412.9,4412.8,0.231]
[1756796502188,0.285,4412.8,4412.5,44.2892]
[1756796502391,1.66865273,4412.6,4412.5,44.2388]
[1756796502594,1.87920896,4412.6,4412.5,3.2078]
[1756796502795,1.87920896,4412.6,4412.5,3.4106]
[1756796504093,1.87920896,4412.6,4412.5,3.692]
[1756796504994,1.66865273,4412.6,4412.5,3.692]
[1756796505294,1.87924246,4412.6,4412.5,3.692]
[1756796505492,1.87924246,4412.6,4412.5,0.4842]
[1756796505697,1.87924246,4412.6,4412.5,0.2028]
[1756796505894,1.87924246,4412.6,4412.4,0.231]
[1756796506090,0.90298973,4412.5,4412.4,0.7152]
[1756796506295,0.90298973,4412.5,4412.3,0.142]
[1756796506597,0.97625273,4412.6,4412.3,0.8572]
[1756796506598,0.90298973,4412.4,4412.3,0.8572]
[1756796507695,0.90298973,4412.4,4412.3,0.7152]
[1756796508099,0.90298973,4412.4,4412.3,0.9101]
[1756796512790,0.90313393,4412.4,4412.3,0.9101]
[1756796514492,0.21073393,4412.4,4412.3,0.9101]
[1756796514694,0.21073393,4412.4,4412.3,4.9101]
[1756796514890,0.4862,4413.6,4413.5,0.3977]
[1756796515194,1.66221618,4413.6,4413.5,0.6791]
[1756796515597,1.46245273,4413.6,4413.5,0.6791]
[1756796516494,3.694,4414.4,4414.3,0.3977]
[1756796516791,4.87645273,4414.4,4414.3,0.6791]
[1756796516987,4.87645273,4414.4,4414.1,0.231]
[1756796517194,4.59145273,4414.4,4413.8,0.4334]
[1756796517394,1.66865273,4413.9,4413.8,0.8311]
[1756796517696,1.66865273,4413.9,4413.8,41.6311]
[1756796518094,1.66865273,4413.9,4413.8,40.8]
[1756796518490,1.17745273,4413.9,4413.8,0.6791]
[1756796519199,1.66865273,4413.9,4413.8,0.6791]
[1756796522097,1.38365273,4413.9,4413.5,40.8]
[1756796522300,0.285,4413.3,4413.1,0.2814]
[1756796522500,0.6924,4413.3,4413.2,0.231]
[1756796522696,0.6924,4413.3,4413.0,3.2078]
[1756796522697,0.285,4413.2,4413.0,3.2078]
[1756796522897,0.6924,4413.1,4413.0,0.231]
[1756796523098,0.4074,4413.1,4412.5,3.2078]
[1756796523299,0.6924,4412.6,4412.5,3.2078]
[1756796523497,0.6924,4412.6,4412.4,0.231]
[1756796523698,0.6924,4412.6,4411.9,3.8869]
[1756796523699,0.6924,4412.0,4411.9,3.8869]
[1756796523897,1.66865273,4412.0,4411.9,4.1179]
[1756796524301,1.66865273,4412.0,4411.9,3.8365]
[1756796524508,1.66865273,4412.0,4411.9,3.6416]
[1756796525006,1.66865273,4412.0,4411.9,3.923]
[1756796526508,1.66865273,4412.0,4411.9,4.1179]
[1756796528202,1.66865273,4412.0,4411.9,3.2078]
[1756796528508,1.66865273,4412.0,4411.7,0.1407]
[1756796528509,1.78185273,4412.0,4411.7,0.1407]
[1756796529908,0.285,4411.3,4410.6,0.2814]
[1756796530110,0.4074,4410.7,4410.6,0.6791]
[1756796530302,0.97625273,4410.9,4410.7,0.2814]
[1756796530509,1.17745273,4410.9,4410.8,0.6791]
[1756796531109,1.38365273,4410.9,4410.8,0.6791]
[1756796532013,1.67575273,4410.9,4410.8,0.6791]
[1756796532410,0.2921,4411.3,4410.8,0.9111]
[1756796532708,0.2921,4412.8,4411.7,0.2972]
[1756796532908,0.196,4412.3,4412.2,0.6891]